{"text_format":"3","workbook":"xlsx","n_sheets":1,"sheets":["干杯楼亮化工程量清单 (2)"],"not_rendered":{"images":2,"defined_names":2},"read":"whole","date_system":"1900"}

{"sheet":"干杯楼亮化工程量清单 (2)","index":0,"n_rows":51,"n_cols":10,"rows_kept":51,"merged":[[0,0,0,9],[1,0,2,0],[1,1,2,1],[1,2,2,2],[1,3,2,3],[1,4,2,4],[1,5,1,6],[1,7,1,8],[1,9,2,9],[3,0,3,9],[27,0,27,9],[49,0,49,4],[50,0,50,9]]}
["2024年“H”项目发光字及光亮工程工程量清单与报价表"]
["序号","项目名称","工作内容","单位","工程量","采购最高限价（含税）",null,"投标报价",null,"备注"]
[{"$nulls":5},"全费用综合单价（元）","合价（元）","含税全费用单价（元）","含税合价（元）"]
["一、光亮工程"]
[1,"照明配电箱AL01","1.名称：泛光照明箱AL01 \n2.型号、规格：800x600x200 ，304不锈钢定制，防护等级IP54；\n3.接线端子材质、规格：详设计图纸 \n4.安装方式及元器件：详见施工图；\n5.包含工作内容：配电箱、配电箱基础、接地、配电箱安装涉及的所有工作；满足施工图及现行施工技术、质量验收规范要求。\n6.其他：综合单价包含完成该工作所需的所有材料、并制作安装完成。","套",1,6000,{"$f":"F5*E5","v":6000},null,null,"配电箱元器件不得低于西门子、ABB、施耐德的品牌要求"]
[2,"照明配电箱AL02","1.名称：泛光照明箱AL02 \n2.型号、规格：800x600x200 ，304不锈钢定制，防护等级IP54；\n3.接线端子材质、规格：详设计图纸 \n4.安装方式及元器件：详见施工图；\n5.包含工作内容：配电箱、配电箱基础、接地、配电箱安装涉及的所有工作；满足施工图及现行施工技术、质量验收规范要求。\n6.其他：综合单价包含完成该工作所需的所有材料、并制作安装完成。","套",1,7200,7200,null,null,"配电箱元器件不得低于西门子、ABB、施耐德的品牌要求"]
[3,"照明配电箱AL03","1.名称：泛光照明箱AL03\n2.型号、规格：800x600x200 ，304不锈钢定制，防护等级IP54；\n3.接线端子材质、规格：详设计图纸 \n4.安装方式及元器件：详见施工图；\n5.包含工作内容：配电箱、配电箱基础、接地、配电箱安装涉及的所有工作；满足施工图及现行施工技术、质量验收规范要求。\n6.其他：综合单价包含完成该工作所需的所有材料、并制作安装完成。","套",1,6800,6800,null,null,"配电箱元器件不得低于西门子、ABB、施耐德的品牌要求"]
[4,"照明配电箱AL04","1.名称：泛光照明箱AL04\n2.型号、规格：800x600x200 ，304不锈钢定制，防护等级IP54；\n3.接线端子材质、规格：详设计图纸 \n4.安装方式及元器件：详见施工图；\n5.包含工作内容：配电箱、配电箱基础、接地、配电箱安装涉及的所有工作；满足施工图及现行施工技术、质量验收规范要求。\n6.其他：综合单价包含完成该工作所需的所有材料、并制作安装完成。","套",1,5500,5500,null,null,"配电箱元器件不得低于西门子、ABB、施耐德的品牌要求"]
[5,"LED洗墙灯\nXQ-24\n（L=1000mm）","1.名称：洗墙灯（灯具外观颜色与建筑外立面一致），不锈钢栓钉固定,钉孔注塞耐候结构胶；\n2.型号、规格 ：定制压铸铝外壳+钢化玻璃+双层密封，24W/1M/LED，灯具电压DC24V，色温RGB+W，角度30°防护等级IP65；\n3.施工安装要求: 灯具安装涉及的相关防雷及接地要求详见施工图，且需满足规范及验收要求；\n4.其他：综合单价包含完成该工作所需的所有材料、并制作安装完成。","套",230,240,55200,null,null,"LED光源和灯具均不低于雷士、飞利浦、欧普等品牌品质要求"]
[6,"LED洗墙灯\nXQ-12\n（L=500mm）","1.名称：洗墙灯（灯具外观颜色与建筑外立面一致），不锈钢栓钉固定,钉孔注塞耐候结构胶；\n2.型号、规格 ：定制压铸铝外壳+钢化玻璃+双层密封，12W/0.5M/LED，灯具电压DC24V，色温RGB+W，角度30°防护等级IP65；\n3.施工安装要求: 灯具安装涉及的相关防雷及接地要求详见施工图，且需满足规范及验收要求；\n4.其他：综合单价包含完成该工作所需的所有材料、并制作安装完成。","套",10,200,2000,null,null,"LED光源和灯具均不低于雷士、飞利浦、欧普等品牌品质要求"]
[7,"LED洗墙灯\nXQ-6\n（L=300mm）","1.名称：洗墙灯（灯具外观颜色与建筑外立面一致），不锈钢栓钉固定,钉孔注塞耐候结构胶；\n2.型号、规格 ：定制压铸铝外壳+钢化玻璃+双层密封，6W/0.3M/LED，灯具电压DC24V，色温RGB+W，角度30°防护等级IP65；\n3.施工安装要求: 灯具安装涉及的相关防雷及接地要求详见施工图，且需满足规范及验收要求；\n4.其他：综合单价包含完成该工作所需的所有材料、并制作安装完成。","套",10,160,1600,null,null,"LED光源和灯具均不低于雷士、飞利浦、欧普等品牌品质要求"]
[8,"L01A\nLED双面洗墙灯（L=1000mm）","1.名称：双面洗墙灯（灯具外观颜色与建筑外立面一致），不锈钢栓钉固定,钉孔注塞耐候结构胶；\n2.型号、规格 ：定制压铸铝外壳+钢化玻璃+双层密封，36W/1M/LED，灯具电压DC24V，色温RGB+W，角度120°防护等级IP65；\n3.施工安装要求: 灯具安装涉及的相关防雷及接地要求详见施工图，且需满足规范及验收要求；\n4.其他：综合单价包含完成该工作所需的所有材料、并制作安装完成。","套",1250,750,937500,null,null,"LED光源和灯具均不低于雷士、飞利浦、欧普等品牌品质要求"]
[9,"L01B\nLED双面洗墙灯（L=500mm）","1.名称：双面洗墙灯（灯具外观颜色与建筑外立面一致），不锈钢栓钉固定,钉孔注塞耐候结构胶；\n2.型号、规格 ：定制压铸铝外壳+钢化玻璃+双层密封，8W/0.5M/LED，灯具电压DC24V，色温RGB+W，角度120°防护等级IP65；\n3.施工安装要求: 灯具安装涉及的相关防雷及接地要求详见施工图，且需满足规范及验收要求；\n4.其他：综合单价包含完成该工作所需的所有材料、并制作安装完成。","套",50,620,31000,null,null,"LED光源和灯具均不低于雷士、飞利浦、欧普等品牌品质要求"]
[10,"L01C\nLED双面洗墙灯（L=300mm）","1.名称：双面洗墙灯（灯具外观颜色与建筑外立面一致），不锈钢栓钉固定,钉孔注塞耐候结构胶；\n2.型号、规格 ：定制压铸铝外壳+钢化玻璃+双层密封，5W/0.3M/LED，灯具电压DC24V，色温RGB+W，角度120°防护等级IP65；\n3.施工安装要求: 灯具安装涉及的相关防雷及接地要求详见施工图，且需满足规范及验收要求；。\n4.其他：综合单价包含完成该工作所需的所有材料、并制作安装完成。","套",48,480,23040,null,null,"LED光源和灯具均不低于雷士、飞利浦、欧普等品牌品质要求"]
[11,"24W/1M/LED 洗墙灯","1.名称：洗墙灯（灯具外观颜色与建筑外立面一致），不锈钢栓钉固定,钉孔注塞耐候结构胶；\n2.型号、规格 ：定制压铸铝外壳+钢化玻璃+双层密封，24W/1M/LED，灯具电压DC24V，色温3000K，防护等级IP65；\n3.施工安装要求: 灯具安装涉及的相关防雷及接地要求详见施工图，且需满足规范及验收要求；\n4.其他：综合单价包含完成该工作所需的所有材料、并制作安装完成。","套",300,240,72000,null,null,"LED光源和灯具均不低于雷士、飞利浦、欧普等品牌品质要求"]
[12,"12W/0.5M/LED 洗墙灯","1.名称：洗墙灯（灯具外观颜色与建筑外立面一致），不锈钢栓钉固定,钉孔注塞耐候结构胶；\n2.型号、规格 ：定制压铸铝外壳+钢化玻璃+双层密封，12W/0.5M/LED，灯具电压DC24V，色温3000K，防护等级IP65；\n3.施工安装要求: 灯具安装涉及的相关防雷及接地要求详见施工图，且需满足规范及验收要求；\n4.其他：综合单价包含完成该工作所需的所有材料、并制作安装完成。","套",150,220,33000,null,null,"LED光源和灯具均不低于雷士、飞利浦、欧普等品牌品质要求"]
[13,"8W/0.3M/LED 洗墙灯","1.名称：洗墙灯（灯具外观颜色与建筑外立面一致），不锈钢栓钉固定,钉孔注塞耐候结构胶；\n2.型号、规格 ：定制压铸铝外壳+钢化玻璃+双层密封，8W/0.3M/LED，灯具电压DC24V，色温3000K，防护等级IP65；\n3.施工安装要求: 灯具安装涉及的相关防雷及接地要求详见施工图，且需满足规范及验收要求；\n4.其他：综合单价包含完成该工作所需的所有材料、并制作安装完成。","套",400,190,76000,null,null,"LED光源和灯具均不低于雷士、飞利浦、欧普等品牌品质要求"]
[14,"LED开关电源","1.名称:防水LED开关电源 \n2.型号:防雨型,400W ~220V/-24V\n3.规格:保护短路/过负载/过电压/过温度,带PFC功能,防护等级IP65 \n4.其他要求:满足设计、规范要求；\n5.其他：综合单价包含完成该工作所需的所有材料、并制作安装完成。","套",196,150,{"$f":"F18*E18","v":29400},null,null,"元器件不得低于西门子、ABB、施耐德的品牌要求"]
[15,"电力电缆\nWDZ-YJY-4X25+1X16","1.名称：电力电缆； \n2.型号、规格、材质：WDZ-YJY-4X25+1X16；\n3.敷设方式 ：沿桥架敷设，具体详见施工图；\n4.具体做法：满足设计及现行施工技术、质量验收规范要求。\n5.其他：综合单价包含完成该工作所需的所有材料、并制作安装完成。","m",200,135,27000,null,null,"不低于美河电缆、上上电缆、神州电缆的品牌品质要求"]
[16,"电力电缆\nWDZC-YJY-3*4","1.名称：电力电缆； \n2.型号、规格、材质：WDZC-YJY-3*4；\n3.敷设方式 ：沿桥架敷设，具体详见施工图；\n4.具体做法：满足设计及现行施工技术、质量验收规范要求。\n5.其他：综合单价包含完成该工作所需的所有材料、并制作安装完成。","m",1045,23,24035,null,null,"不低于美河电缆、上上电缆、神州电缆的品牌品质要求"]
[17,"配线\nZR-RVV-2*4","1.名称：电力电缆； \n2.型号、规格、材质：ZR-RVV-2*4；\n3.敷设方式 ：穿管，沿墙暗敷，具体详见施工图；\n4.具体做法：满足设计及现行施工技术、质量验收规范要求。\n5.其他：综合单价包含完成该工作所需的所有材料、并制作安装完成。","m",3683,15,55245,null,null,"不低于美河电缆、上上电缆、神州电缆的品牌品质要求"]
[18,"超五类网线","1.名称：电力电缆； \n2.型号、规格、材质：超五类网线；\n3.敷设方式 ：穿管，沿墙暗敷，具体详见施工图；\n4.具体做法：满足设计及现行施工技术、质量验收规范要求。\n5.其他：综合单价包含完成该工作所需的所有材料、并制作安装完成。","m",800,4.5,3600]
[19,"主控","1.名称：主控器 \n2.型号、规格：详设计图纸\n3.安装方式：详设计图纸\n4.其他要求：满足设计、规范要求 \n5.其他：综合单价包含完成该工作所需的所有材料、并制作安装完成。","台",2,6000,12000,null,null,"元器件不得低于西门子、ABB、施耐德的品牌要求"]
[20,"分控","1.名称：分控器 \n2.型号、规格：详设计图纸\n3.安装方式：详设计图纸\n4.其他要求：满足设计、规范要求 \n5.其他：综合单价包含完成该工作所需的所有材料、并制作安装完成。","台",35,2000,70000,null,null,"元器件不得低于西门子、ABB、施耐德的品牌要求"]
[21,"配管 PVC管φ20","1.名称、材质、规格：刚性塑料管PVCφ20\n2.具体做法：满足设计及现行施工技术、质量验收规范要求。\n3.其他：综合单价包含完成该工作所需的所有材料、并制作安装完成。","m",950,8,7600]
[22,"桥架","1.名称：铝合金线槽；\n2.型号、规格：100*100；\n3.其他要求：满足设计、规范要求；\n4.其他：综合单价包含完成该工作所需的所有材料、并制作安装完成。","m",260,35,9100]
[23,"桥架","1.名称：铝合金线槽；\n2.型号、规格：100*50； \n3.其他要求：满足设计、规范要求；\n4.其他：综合单价包含完成该工作所需的所有材料、并制作安装完成。","m",1300,30,39000]
["二、发光字"]
[24,"发光字（国）","1.规格、材质：3.67m*3.4m；1.2mm厚镀锌板烤漆（天地盖）发光字；字体厚度200mm，（背部打出水口），内置30mm*50mm*1mm厚热镀锌钢架（加强抗风强度），字内底部：安装PVC防水灯板绝缘，光源采用：蓝景防水模组、蓝景变压器，发光面板5mm后黄色户外亚克力定制板；\n2、字体背架型钢材质、规格：40mm*40mm*2.5mm厚热镀锌方管+80mm*80mm*2.5mm厚热镀锌方管焊接喷漆（富锌底漆+2遍氟碳漆,颜色综合）；\n3、具体做法详见施工图；细部构造如需二次深化设计，需经业主及设计复核同意再施工；\n电线：2.5平方多芯铜线、接头烫锡绝缘处理；\n4.字体规格详见图纸；\n5.其他：综合单价包含完成该工作所需的所有材料、并制作安装完成。","个",1,24900,{"$f":"F29*E29","v":24900}]
[25,"发光字（窖）","1.规格、材质：4.06*3.42；1.2mm厚镀锌板烤漆（天地盖）发光字；字体厚度200mm，（背部打出水口），内置30mm*50mm*1mm厚热镀锌钢架（加强抗风强度），字内底部：安装PVC防水灯板绝缘，光源采用：蓝景防水模组、蓝景变压器，发光面板5mm后黄色户外亚克力定制板；\n2、字体背架型钢材质、规格：40mm*40mm*2.5mm厚热镀锌方管+80mm*80mm*2.5mm厚热镀锌方管焊接喷漆（富锌底漆+2遍氟碳漆,颜色综合）；\n3、具体做法详见施工图；细部构造如需二次深化设计，需经业主及设计复核同意再施工；\n电线：2.5平方多芯铜线、接头烫锡绝缘处理；\n4.字体规格详见图纸；\n5.其他：综合单价包含完成该工作所需的所有材料、并制作安装完成。","个",1,27800,27800]
[26,"发光字（1）","1.规格、材质：3.1*2.56；1.2mm厚镀锌板烤漆（天地盖）发光字；字体厚度200mm，（背部打出水口），内置30mm*50mm*1mm厚热镀锌钢架（加强抗风强度），字内底部：安装PVC防水灯板绝缘，光源采用：蓝景防水模组、蓝景变压器，发光面板5mm后黄色户外亚克力定制板；\n2、字体背架型钢材质、规格：40mm*40mm*2.5mm厚热镀锌方管+80mm*80mm*2.5mm厚热镀锌方管焊接喷漆（富锌底漆+2遍氟碳漆,颜色综合）；\n3、具体做法详见施工图；细部构造如需二次深化设计，需经业主及设计复核同意再施工；\n电线：2.5平方多芯铜线、接头烫锡绝缘处理；\n4.字体规格详见图纸；\n5.其他：综合单价包含完成该工作所需的所有材料、并制作安装完成。","个",1,15800,15800]
[27,"发光字（5）","1.规格、材质：4m*2.59m；1.2mm厚镀锌板烤漆（天地盖）发光字；字体厚度200mm，（背部打出水口），内置30mm*50mm*1mm厚热镀锌钢架（加强抗风强度），字内底部：安装PVC防水灯板绝缘，光源采用：蓝景防水模组、蓝景变压器，发光面板5mm后黄色户外亚克力定制板；\n2、字体背架型钢材质、规格：40mm*40mm*2.5mm厚热镀锌方管+80mm*80mm*2.5mm厚热镀锌方管焊接喷漆（富锌底漆+2遍氟碳漆,颜色综合）；\n3、具体做法详见施工图；细部构造如需二次深化设计，需经业主及设计复核同意再施工；\n电线：2.5平方多芯铜线、接头烫锡绝缘处理；\n4.字体规格详见图纸；\n5.其他：综合单价包含完成该工作所需的所有材料、并制作安装完成。","个",1,20500,20500]
[28,"发光字（7）","1.规格、材质：3.59m*2.52m；1.2mm厚镀锌板烤漆（天地盖）发光字；字体厚度200mm，（背部打出水口），内置30mm*50mm*1mm厚热镀锌钢架（加强抗风强度），字内底部：安装PVC防水灯板绝缘，光源采用：蓝景防水模组、蓝景变压器，发光面板5mm后黄色户外亚克力定制板；\n2、字体背架型钢材质、规格：40mm*40mm*2.5mm厚热镀锌方管+80mm*80mm*2.5mm厚热镀锌方管焊接喷漆（富锌底漆+2遍氟碳漆,颜色综合）；\n3、具体做法详见施工图；细部构造如需二次深化设计，需经业主及设计复核同意再施工；\n电线：2.5平方多芯铜线、接头烫锡绝缘处理；\n4.字体规格详见图纸；\n5.其他：综合单价包含完成该工作所需的所有材料、并制作安装完成。","个",1,18200,18200]
[29,"发光字（3）","1.规格、材质：3.47m*2.48m；1.2mm厚镀锌板烤漆（天地盖）发光字；字体厚度200mm，（背部打出水口），内置30mm*50mm*1mm厚热镀锌钢架（加强抗风强度），字内底部：安装PVC防水灯板绝缘，光源采用：蓝景防水模组、蓝景变压器，发光面板5mm后黄色户外亚克力定制板；\n2、字体背架型钢材质、规格：40mm*40mm*2.5mm厚热镀锌方管+80mm*80mm*2.5mm厚热镀锌方管焊接喷漆（富锌底漆+2遍氟碳漆,颜色综合）；\n3、具体做法详见施工图；细部构造如需二次深化设计，需经业主及设计复核同意再施工；\n电线：2.5平方多芯铜线、接头烫锡绝缘处理；\n4.字体规格详见图纸；\n5.其他：综合单价包含完成该工作所需的所有材料、并制作安装完成。","个",1,17200,17200]
[30,"发光字（让）","1.规格、材质：3.03m*2.72m；1.2mm厚镀锌板烤漆（天地盖）发光字；字体厚度200mm，（背部打出水口），内置30mm*50mm*1mm厚热镀锌钢架（加强抗风强度），字内底部：安装PVC防水灯板绝缘，光源采用：蓝景防水模组、蓝景变压器，发光面板5mm后黄色户外亚克力定制板；\n2、字体背架型钢材质、规格：40mm*40mm*2.5mm厚热镀锌方管+80mm*80mm*2.5mm厚热镀锌方管焊接喷漆（富锌底漆+2遍氟碳漆,颜色综合）；\n3、具体做法详见施工图；细部构造如需二次深化设计，需经业主及设计复核同意再施工；\n电线：2.5平方多芯铜线、接头烫锡绝缘处理；\n4.字体规格详见图纸；\n5.其他：综合单价包含完成该工作所需的所有材料、并制作安装完成。","个",1,16500,16500]
[31,"发光字（世）","1.规格、材质：3.4m*1.71m；1.2mm厚镀锌板烤漆（天地盖）发光字；字体厚度200mm，（背部打出水口），内置30mm*50mm*1mm厚热镀锌钢架（加强抗风强度），字内底部：安装PVC防水灯板绝缘，光源采用：蓝景防水模组、蓝景变压器，发光面板5mm后黄色户外亚克力定制板；\n2、字体背架型钢材质、规格：40mm*40mm*2.5mm厚热镀锌方管+80mm*80mm*2.5mm厚热镀锌方管焊接喷漆（富锌底漆+2遍氟碳漆,颜色综合）；\n3、具体做法详见施工图；细部构造如需二次深化设计，需经业主及设计复核同意再施工；\n电线：2.5平方多芯铜线、接头烫锡绝缘处理；\n4.字体规格详见图纸；\n5.其他：综合单价包含完成该工作所需的所有材料、并制作安装完成。","个",1,11600,11600]
[32,"发光字（界）","1.规格、材质：2.51m*3.5m；1.2mm厚镀锌板烤漆（天地盖）发光字；字体厚度200mm，（背部打出水口），内置30mm*50mm*1mm厚热镀锌钢架（加强抗风强度），字内底部：安装PVC防水灯板绝缘，光源采用：蓝景防水模组、蓝景变压器，发光面板5mm后黄色户外亚克力定制板；\n2、字体背架型钢材质、规格：40mm*40mm*2.5mm厚热镀锌方管+80mm*80mm*2.5mm厚热镀锌方管焊接喷漆（富锌底漆+2遍氟碳漆,颜色综合）；\n3、具体做法详见施工图；细部构造如需二次深化设计，需经业主及设计复核同意再施工；\n电线：2.5平方多芯铜线、接头烫锡绝缘处理；\n4.字体规格详见图纸；\n5.其他：综合单价包含完成该工作所需的所有材料、并制作安装完成。","个",1,17500,17500]
[33,"发光字（品）","1.规格、材质：2.5m*2.22m；1.2mm厚镀锌板烤漆（天地盖）发光字；字体厚度200mm，（背部打出水口），内置30mm*50mm*1mm厚热镀锌钢架（加强抗风强度），字内底部：安装PVC防水灯板绝缘，光源采用：蓝景防水模组、蓝景变压器，发光面板5mm后黄色户外亚克力定制板；\n2、字体背架型钢材质、规格：40mm*40mm*2.5mm厚热镀锌方管+80mm*80mm*2.5mm厚热镀锌方管焊接喷漆（富锌底漆+2遍氟碳漆,颜色综合）；\n3、具体做法详见施工图；细部构造如需二次深化设计，需经业主及设计复核同意再施工；\n电线：2.5平方多芯铜线、接头烫锡绝缘处理；\n4.字体规格详见图纸；\n5.其他：综合单价包含完成该工作所需的所有材料、并制作安装完成。","个",1,11100,11100]
[34,"发光字（味）","1.规格、材质：3.03m*2.9m；1.2mm厚镀锌板烤漆（天地盖）发光字；字体厚度200mm，（背部打出水口），内置30mm*50mm*1mm厚热镀锌钢架（加强抗风强度），字内底部：安装PVC防水灯板绝缘，光源采用：蓝景防水模组、蓝景变压器，发光面板5mm后黄色户外亚克力定制板；\n2、字体背架型钢材质、规格：40mm*40mm*2.5mm厚热镀锌方管+80mm*80mm*2.5mm厚热镀锌方管焊接喷漆（富锌底漆+2遍氟碳漆,颜色综合）；\n3、具体做法详见施工图；细部构造如需二次深化设计，需经业主及设计复核同意再施工；\n电线：2.5平方多芯铜线、接头烫锡绝缘处理；\n4.字体规格详见图纸；\n5.其他：综合单价包含完成该工作所需的所有材料、并制作安装完成。","个",1,17500,17500]
[35,"发光字（中）","1.规格、材质：2.44m*3.21m；1.2mm厚镀锌板烤漆（天地盖）发光字；字体厚度200mm，（背部打出水口），内置30mm*50mm*1mm厚热镀锌钢架（加强抗风强度），字内底部：安装PVC防水灯板绝缘，光源采用：蓝景防水模组、蓝景变压器，发光面板5mm后黄色户外亚克力定制板；\n2、字体背架型钢材质、规格：40mm*40mm*2.5mm厚热镀锌方管+80mm*80mm*2.5mm厚热镀锌方管焊接喷漆（富锌底漆+2遍氟碳漆,颜色综合）；\n3、具体做法详见施工图；细部构造如需二次深化设计，需经业主及设计复核同意再施工；\n电线：2.5平方多芯铜线、接头烫锡绝缘处理；\n4.字体规格详见图纸；\n5.其他：综合单价包含完成该工作所需的所有材料、并制作安装完成。","个",1,15600,15600]
[36,"发光字（国）","1.规格、材质：2.65m*3.16m；1.2mm厚镀锌板烤漆（天地盖）发光字；字体厚度200mm，（背部打出水口），内置30mm*50mm*1mm厚热镀锌钢架（加强抗风强度），字内底部：安装PVC防水灯板绝缘，光源采用：蓝景防水模组、蓝景变压器，发光面板5mm后黄色户外亚克力定制板；\n2、字体背架型钢材质、规格：40mm*40mm*2.5mm厚热镀锌方管+80mm*80mm*2.5mm厚热镀锌方管焊接喷漆（富锌底漆+2遍氟碳漆,颜色综合）；\n3、具体做法详见施工图；细部构造如需二次深化设计，需经业主及设计复核同意再施工；\n电线：2.5平方多芯铜线、接头烫锡绝缘处理；\n4.字体规格详见图纸；\n5.其他：综合单价包含完成该工作所需的所有材料、并制作安装完成。","个",1,16700,16700]
[37,"发光字（泸）","1.规格、材质：4m*4.65m；1.2mm厚镀锌板烤漆（天地盖）发光字；字体厚度200mm，（背部打出水口），内置30mm*50mm*1mm厚热镀锌钢架（加强抗风强度），字内底部：安装PVC防水灯板绝缘，光源采用：蓝景防水模组、蓝景变压器，发光面板5mm后黄色户外亚克力定制板；\n2、字体背架型钢材质、规格：40mm*40mm*2.5mm厚热镀锌方管+80mm*80mm*2.5mm厚热镀锌方管焊接喷漆（富锌底漆+2遍氟碳漆,颜色综合）；\n3、具体做法详见施工图；细部构造如需二次深化设计，需经业主及设计复核同意再施工；\n电线：2.5平方多芯铜线、接头烫锡绝缘处理；\n4.字体规格详见图纸；\n5.其他：综合单价包含完成该工作所需的所有材料、并制作安装完成。","个",1,37200,37200]
[38,"发光字（州）","1.规格、材质：2.81m*2.05m；1.2mm厚镀锌板烤漆（天地盖）发光字；字体厚度200mm，（背部打出水口），内置30mm*50mm*1mm厚热镀锌钢架（加强抗风强度），字内底部：安装PVC防水灯板绝缘，光源采用：蓝景防水模组、蓝景变压器，发光面板5mm后黄色户外亚克力定制板；\n2、字体背架型钢材质、规格：40mm*40mm*2.5mm厚热镀锌方管+80mm*80mm*2.5mm厚热镀锌方管焊接喷漆（富锌底漆+2遍氟碳漆,颜色综合）；\n3、具体做法详见施工图；细部构造如需二次深化设计，需经业主及设计复核同意再施工；\n电线：2.5平方多芯铜线、接头烫锡绝缘处理；\n4.字体规格详见图纸；\n5.其他：综合单价包含完成该工作所需的所有材料、并制作安装完成。","个",1,11500,11500]
[39,"发光字（老）","1.规格、材质：4.02m*3.27m；1.2mm厚镀锌板烤漆（天地盖）发光字；字体厚度200mm，（背部打出水口），内置30mm*50mm*1mm厚热镀锌钢架（加强抗风强度），字内底部：安装PVC防水灯板绝缘，光源采用：蓝景防水模组、蓝景变压器，发光面板5mm后黄色户外亚克力定制板；\n2、字体背架型钢材质、规格：40mm*40mm*2.5mm厚热镀锌方管+80mm*80mm*2.5mm厚热镀锌方管焊接喷漆（富锌底漆+2遍氟碳漆,颜色综合）；\n3、具体做法详见施工图；细部构造如需二次深化设计，需经业主及设计复核同意再施工；\n电线：2.5平方多芯铜线、接头烫锡绝缘处理；\n4.字体规格详见图纸；\n5.其他：综合单价包含完成该工作所需的所有材料、并制作安装完成。","个",1,26300,26300]
[40,"发光字（窖）","1.规格、材质：3.38m*3.59m；1.2mm厚镀锌板烤漆（天地盖）发光字；字体厚度200mm，（背部打出水口），内置30mm*50mm*1mm厚热镀锌钢架（加强抗风强度），字内底部：安装PVC防水灯板绝缘，光源采用：蓝景防水模组、蓝景变压器，发光面板5mm后黄色户外亚克力定制板；\n2、字体背架型钢材质、规格：40mm*40mm*2.5mm厚热镀锌方管+80mm*80mm*2.5mm厚热镀锌方管焊接喷漆（富锌底漆+2遍氟碳漆,颜色综合）；\n3、具体做法详见施工图；细部构造如需二次深化设计，需经业主及设计复核同意再施工；\n电线：2.5平方多芯铜线、接头烫锡绝缘处理；\n4.字体规格详见图纸；\n5.其他：综合单价包含完成该工作所需的所有材料、并制作安装完成。","个",1,24200,24200]
[41,"发光字（中）","1.规格、材质：3.92m*3.37m；1.2mm厚镀锌板烤漆（天地盖）发光字；字体厚度200mm，（背部打出水口），内置30mm*50mm*1mm厚热镀锌钢架（加强抗风强度），字内底部：安装PVC防水灯板绝缘，光源采用：蓝景防水模组、蓝景变压器，发光面板5mm后黄色户外亚克力定制板；\n2、字体背架型钢材质、规格：40mm*40mm*2.5mm厚热镀锌方管+80mm*80mm*2.5mm厚热镀锌方管焊接喷漆（富锌底漆+2遍氟碳漆,颜色综合）；\n3、具体做法详见施工图；细部构造如需二次深化设计，需经业主及设计复核同意再施工；\n电线：2.5平方多芯铜线、接头烫锡绝缘处理；\n4.字体规格详见图纸；\n5.其他：综合单价包含完成该工作所需的所有材料、并制作安装完成。","个",1,26400,26400]
[42,"发光字（国）","1.规格、材质：3.59m*3.87m；1.2mm厚镀锌板烤漆（天地盖）发光字；字体厚度200mm，（背部打出水口），内置30mm*50mm*1mm厚热镀锌钢架（加强抗风强度），字内底部：安装PVC防水灯板绝缘，光源采用：蓝景防水模组、蓝景变压器，发光面板5mm后黄色户外亚克力定制板；\n2、字体背架型钢材质、规格：40mm*40mm*2.5mm厚热镀锌方管+80mm*80mm*2.5mm厚热镀锌方管焊接喷漆（富锌底漆+2遍氟碳漆,颜色综合）；\n3、具体做法详见施工图；细部构造如需二次深化设计，需经业主及设计复核同意再施工；\n电线：2.5平方多芯铜线、接头烫锡绝缘处理；\n4.字体规格详见图纸；\n5.其他：综合单价包含完成该工作所需的所有材料、并制作安装完成。","个",1,27500,27500]
[43,"发光字（荣）","1.规格、材质：3.82m*3.93m；1.2mm厚镀锌板烤漆（天地盖）发光字；字体厚度200mm，（背部打出水口），内置30mm*50mm*1mm厚热镀锌钢架（加强抗风强度），字内底部：安装PVC防水灯板绝缘，光源采用：蓝景防水模组、蓝景变压器，发光面板5mm后黄色户外亚克力定制板；\n2、字体背架型钢材质、规格：40mm*40mm*2.5mm厚热镀锌方管+80mm*80mm*2.5mm厚热镀锌方管焊接喷漆（富锌底漆+2遍氟碳漆,颜色综合）；\n3、具体做法详见施工图；细部构造如需二次深化设计，需经业主及设计复核同意再施工；\n电线：2.5平方多芯铜线、接头烫锡绝缘处理；\n4.字体规格详见图纸；\n5.其他：综合单价包含完成该工作所需的所有材料、并制作安装完成。","个",1,30000,30000]
[44,"发光字（耀）","1.规格、材质：3.93m*3.83m；1.2mm厚镀锌板烤漆（天地盖）发光字；字体厚度200mm，（背部打出水口），内置30mm*50mm*1mm厚热镀锌钢架（加强抗风强度），字内底部：安装PVC防水灯板绝缘，光源采用：蓝景防水模组、蓝景变压器，发光面板5mm后黄色户外亚克力定制板；\n2、字体背架型钢材质、规格：40mm*40mm*2.5mm厚热镀锌方管+80mm*80mm*2.5mm厚热镀锌方管焊接喷漆（富锌底漆+2遍氟碳漆,颜色综合）；\n3、具体做法详见施工图；细部构造如需二次深化设计，需经业主及设计复核同意再施工；\n电线：2.5平方多芯铜线、接头烫锡绝缘处理；\n4.字体规格详见图纸；\n5.其他：综合单价包含完成该工作所需的所有材料、并制作安装完成。","个",1,30000,30000]
["合  价",{"$nulls":5},{"$f":"SUM(G5:G49)","v":1977820},null,{"$f":"SUM(I5:I49)","v":0}]
["注：\n1.投标人根据施工工艺、工序及国家现行规范自行踏勘现场后综合考虑进行报价，结算时不作调整;\n2.全费用综合单价包含施工图二次深化设计、人工费、所有材料费（含辅材和周转材料费）、机械设备费、工具器具费、临时设施及措施费、大型机械进出场及场内转运费、下车费、吊装费、规费、管理费、配合费、安全文明施工费、以及各种风险费、保险费、各种检测费、利润、税费以及包含从甲方指定的总配电箱接出至照明配电箱到最终的照明设备所包含的预埋、开槽、开孔，穿线埋管、封洞及恢复等完成该工作所需的全部费用，结算时无论涨跌、工程量增减或其它任何风险因素，均不作调整。\n3.施工中所用临时配电箱、用电线路、开关箱、机具等从建设方提供的接口处接出，所有材料、设备及安装费用含在综合单价中。"]